bitfinex-derivatives/quotes_BTCF0:USTF0_20250729
["timestamp","ask_amount","ask_price","bid_price","bid_amount"]
[1753790295121,0.95112,118660.0,118650.0,1.08153435]
[1753790296328,0.95112,118660.0,118650.0,0.40449435]
[1753790296529,0.95112,118660.0,118650.0,1.08153435]
[1753790298115,0.59032,118660.0,118650.0,1.08153435]
[1753790298823,0.59032,118660.0,118650.0,1.20531845]
[1753790299024,0.47032,118660.0,118650.0,1.20531845]
[1753790300228,0.47032,118660.0,118650.0,0.92786609]
[1753790300425,0.47032,118660.0,118650.0,1.26588071]
[1753790303329,0.09529,118660.0,118650.0,1.26588071]
[1753790303730,0.48045,118660.0,118650.0,1.26588071]
[1753790305332,0.48045,118660.0,118650.0,0.92786609]
[1753790305534,0.48045,118660.0,118650.0,1.26588071]
[1753790310437,0.84125,118660.0,118650.0,1.26588071]
[1753790310825,0.48045,118660.0,118650.0,1.26588071]
[1753790311337,0.84125,118660.0,118650.0,1.26588071]
[1753790312439,0.84125,118660.0,118650.0,1.20531845]
[1753790314051,0.48045,118660.0,118650.0,1.20531845]
[1753790315046,0.09529,118660.0,118650.0,1.20531845]
[1753790315250,0.3608,118670.0,118650.0,1.16316865]
[1753790315452,0.85564247,118670.0,118660.0,0.55192406]
[1753790315651,0.85564247,118670.0,118660.0,0.57361539]
[1753790315953,0.49484247,118670.0,118660.0,0.57361539]
[1753790316149,0.49484247,118670.0,118660.0,0.7426227]
[1753790316150,0.48024,118670.0,118660.0,0.7426227]
[1753790316450,0.48024,118670.0,118660.0,0.57361539]
[1753790317350,0.48024,118670.0,118660.0,0.7426227]
[1753790317753,0.04621,118670.0,118660.0,0.69727156]
[1753790317952,0.33558,118670.0,118660.0,0.69727156]
[1753790318250,0.48024,118670.0,118660.0,0.69727156]
[1753790318451,0.48024,118670.0,118660.0,0.52826425]
[1753790318653,0.48024,118670.0,118660.0,0.57359875]
[1753790320651,0.48024,118670.0,118660.0,0.52826425]
[1753790321945,0.04621,118670.0,118660.0,0.69727156]
[1753790322145,0.36701,118670.0,118660.0,0.58882651]
[1753790322341,0.48024,118670.0,118660.0,0.58882651]
[1753790323853,0.48024,118670.0,118660.0,0.75783382]
[1753790324855,0.48024,118670.0,118660.0,0.58882651]
[1753790325155,0.48024,118670.0,118660.0,0.75783382]
[1753790326252,0.48024,118670.0,118660.0,0.25081189]
[1753790326551,0.48024,118670.0,118660.0,0.58882651]
[1753790328159,0.48024,118670.0,118660.0,1.26522651]
[1753790331660,0.96104,118670.0,118660.0,1.20458425]
[1753790332461,0.96104,118670.0,118660.0,1.26514651]
[1753790333060,0.96104,118670.0,118660.0,1.20458425]
[1753790333360,0.96104,118670.0,118660.0,0.58882651]
[1753790333561,0.96104,118670.0,118660.0,1.26510651]
[1753790333761,0.96104,118670.0,118660.0,2.43066651]
[1753790334259,0.84104,118670.0,118660.0,2.43066651]
[1753790334863,0.84104,118670.0,118660.0,1.75438651]
[1753790335063,0.84104,118670.0,118660.0,2.43066651]
[1753790335964,0.48024,118670.0,118660.0,2.43066651]
[1753790336163,0.84104,118670.0,118660.0,2.43066651]
[1753790337462,0.48024,118670.0,118660.0,2.43066651]
[1753790337763,0.84104,118670.0,118660.0,2.43066651]
[1753790337965,0.48024,118670.0,118660.0,2.43066651]
[1753790338160,0.84104,118670.0,118660.0,2.43066651]
[1753790338563,0.48024,118670.0,118660.0,2.43066651]
[1753790338761,0.84104,118670.0,118660.0,2.43066651]
[1753790339562,0.48024,118670.0,118660.0,2.43066651]
[1753790339768,0.84104,118670.0,118660.0,2.43066651]
[1753790340163,0.48024,118670.0,118660.0,2.43066651]
[1753790340369,0.84104,118670.0,118660.0,2.43066651]
[1753790340976,0.48024,118670.0,118660.0,2.43066651]
[1753790341161,0.84104,118670.0,118660.0,2.43066651]
[1753790342773,0.94104,118670.0,118660.0,2.43066651]
[1753790342973,0.84104,118670.0,118660.0,2.43066651]
[1753790343673,0.95104,118670.0,118660.0,2.43066651]
[1753790343874,0.95104,118670.0,118660.0,2.09265189]
[1753790344071,0.95104,118670.0,118660.0,2.43066651]
[1753790344266,0.93104,118670.0,118660.0,2.09265189]
[1753790344466,0.93521,118670.0,118660.0,2.43066651]
[1753790344773,0.84521,118670.0,118660.0,2.43066651]
[1753790347877,0.56139,118670.0,118660.0,2.43066651]
[1753790348077,0.84521,118670.0,118660.0,2.43066651]
[1753790356983,0.84521,118670.0,118660.0,2.43030651]
[1753790357383,0.84521,118670.0,118660.0,2.43026651]
[1753790359079,0.95521,118670.0,118660.0,2.43026651]
[1753790359478,0.84521,118670.0,118660.0,2.43026651]
[1753790361091,0.48441,118670.0,118660.0,2.43026651]
[1753790362291,0.84521,118670.0,118660.0,2.43026651]
[1753790362491,0.84521,118670.0,118660.0,1.26470651]
[1753790366990,0.48441,118670.0,118660.0,1.26470651]
[1753790368292,0.84521,118670.0,118660.0,1.26470651]
[1753790373106,0.84521,118670.0,118660.0,0.92669189]
[1753790373308,0.84521,118670.0,118660.0,1.26470651]
[1753790374705,0.84521,118670.0,118660.0,1.20414425]
[1753790375408,0.48441,118670.0,118660.0,1.20414425]
[1753790375602,0.48441,118670.0,118660.0,1.26465026]
[1753790376511,0.84521,118670.0,118660.0,1.26465026]
[1753790376712,0.48441,118670.0,118660.0,1.26465026]
[1753790377606,0.84521,118670.0,118660.0,1.26465026]
[1753790383316,0.84521,118670.0,118660.0,1.20414425]
[1753790386512,0.84521,118670.0,118660.0,2.36966425]
[1753790389022,0.84521,118670.0,118660.0,2.43017678]
[1753790390024,0.84521,118670.0,118660.0,2.09216216]
[1753790390322,0.84521,118670.0,118660.0,2.43017678]
[1753790391321,0.84521,118670.0,118660.0,1.26465678]
[1753790394230,0.84521,118670.0,118660.0,0.92664216]
[1753790394421,0.84521,118670.0,118660.0,1.26465678]
[1753790398831,0.84521,118670.0,118660.0,1.20414425]
[1753790399026,0.84521,118670.0,118660.0,1.2646644]
[1753790399631,0.84521,118670.0,118660.0,0.5887844]
[1753790399824,0.84521,118670.0,118660.0,1.2639444]
[1753790400129,0.48441,118670.0,118660.0,1.2639444]
[1753790400327,0.04621,118670.0,118660.0,1.6247444]
[1753790400526,0.04747,118670.0,118660.0,2.95926371]
[1753790400732,0.04747,118670.0,118660.0,3.12782201]
[1753790400934,0.04747,118670.0,118660.0,2.78980739]
[1753790401331,0.04747,118670.0,118660.0,2.11464739]
[1753790401633,0.04747,118670.0,118660.0,2.42896739]
[1753790401832,0.04747,118670.0,118660.0,2.78976739]
[1753790402531,0.04747,118670.0,118660.0,2.72924724]
[1753790403631,0.04747,118670.0,118660.0,2.78976739]
[1753790403834,0.40837,118680.0,118670.0,0.168544]
[1753790404036,0.70922746,118680.0,118670.0,0.23561301]
[1753790404332,0.04757,118680.0,118670.0,0.52824995]
[1753790404529,0.06217661,118680.0,118670.0,0.52824995]
[1753790404730,0.04757,118680.0,118670.0,0.52824995]
[1753790406832,0.0001,118680.0,118670.0,0.52824995]
[1753790407233,0.04757,118680.0,118670.0,0.52924995]
[1753790407539,0.0001,118680.0,118670.0,0.5897701]
[1753790407741,0.0001,118680.0,118670.0,0.5907701]
[1753790407941,0.04757,118680.0,118670.0,0.5907701]
[1753790412640,0.04757,118680.0,118670.0,0.53024995]
[1753790413636,0.0001,118680.0,118670.0,0.69925726]
[1753790414036,0.0001,118680.0,118670.0,0.89104995]
[1753790414238,0.3608,118710.0,118670.0,0.79820878]
[1753790414434,0.41468,118700.0,118690.0,0.20833738]
[1753790414634,0.41468,118700.0,118690.0,1.3874383]
[1753790414935,0.77548,118710.0,118700.0,0.1685015]
[1753790415142,0.77548,118710.0,118700.0,0.52820745]
[1753790415440,0.46341,118710.0,118700.0,0.52820745]
[1753790415629,0.82421,118710.0,118700.0,0.52820745]
[1753790416030,0.99321731,118710.0,118700.0,0.35920014]
[1753790417136,1.08321731,118710.0,118700.0,0.35920014]
[1753790417537,0.99321731,118710.0,118700.0,0.35920014]
[1753790417748,1.09321731,118710.0,118700.0,0.35920014]
[1753790418041,0.99321731,118710.0,118700.0,0.36120014]
[1753790418639,0.99321731,118710.0,118700.0,0.42734294]
[1753790418838,0.99321731,118710.0,118700.0,0.43630617]
[1753790420537,0.82421,118710.0,118700.0,0.4534807]
[1753790420738,0.99321731,118710.0,118700.0,0.4534807]
[1753790421745,0.99321731,118710.0,118700.0,0.28447339]
[1753790422140,0.99321731,118710.0,118700.0,0.4534807]
[1753790423146,0.82421,118710.0,118700.0,0.62248801]
[1753790423343,0.99321731,118710.0,118700.0,0.62248801]
[1753790424444,0.82421,118710.0,118700.0,0.62248801]
[1753790424648,0.99321731,118710.0,118700.0,0.62248801]
[1753790424948,1.10321731,118710.0,118700.0,0.4534807]
[1753790425257,0.99321731,118710.0,118700.0,0.4534807]
[1753790425448,1.10321731,118710.0,118700.0,0.4534807]
[1753790425749,1.44071192,118710.0,118700.0,0.94999016]
[1753790425947,1.27170461,118710.0,118700.0,0.94999016]
[1753790426150,1.27170461,118710.0,118700.0,0.27551016]
[1753790426347,1.44071192,118710.0,118700.0,0.10700866]
[1753790426552,0.6319115,118700.0,118690.0,0.12637]
[1753790426751,1.62973343,118700.0,118690.0,0.80085]
[1753790427345,1.62973343,118700.0,118690.0,0.82346447]
[1753790427547,1.62973343,118700.0,118690.0,0.99198017]
[1753790427754,1.46072612,118700.0,118690.0,0.31950017]
[1753790428051,1.46072612,118700.0,118690.0,0.99398017]
[1753790428252,1.46072612,118700.0,118690.0,0.2948857]
[1753790428453,1.46072612,118700.0,118690.0,0.9713257]
[1753790428754,1.34780448,118700.0,118690.0,0.9713257]
[1753790429456,1.35694421,118700.0,118690.0,0.9713257]
[1753790429752,1.34780448,118700.0,118690.0,0.9039257]
[1753790431153,1.34780448,118700.0,118690.0,0.2294857]
[1753790431353,1.34780448,118700.0,118690.0,0.9039257]
[1753790432056,1.35689035,118700.0,118690.0,0.2294857]
[1753790432254,1.34780448,118700.0,118690.0,0.9038857]
[1753790433348,1.34780448,118700.0,118690.0,0.9265185]
[1753790434556,1.35692781,118700.0,118690.0,0.9265185]
[1753790435161,1.35692781,118700.0,118690.0,0.7579628]
[1753790436162,1.35692781,118700.0,118690.0,0.9264784]
[1753790436464,1.35692781,118700.0,118690.0,0.7579628]
[1753790436760,1.35692781,118700.0,118690.0,0.9264785]
[1753790437160,1.35692781,118700.0,118690.0,0.7569628]
[1753790437460,1.35692781,118700.0,118690.0,0.7559628]
[1753790437758,1.35792781,118700.0,118690.0,0.9244785]
[1753790438459,1.35792781,118700.0,118690.0,0.27180336]
[1753790438657,1.35792781,118700.0,118690.0,0.94612336]
[1753790438954,1.35792781,118700.0,118690.0,0.77760766]
[1753790440960,1.35792781,118700.0,118690.0,0.94612326]
[1753790441262,1.13283483,118700.0,118690.0,0.94612326]
[1753790441467,1.35792781,118700.0,118690.0,0.94612326]
[1753790441964,1.35792781,118700.0,118690.0,0.77760766]
[1753790442556,1.37249211,118700.0,118690.0,0.75497486]
[1753790442757,1.37249211,118700.0,118690.0,0.08065486]
[1753790442965,0.3553156,118690.0,118680.0,0.2359298]
[1753790443155,1.32781858,118690.0,118680.0,0.9102098]
[1753790443853,1.32781858,118690.0,118680.0,0.0674]
[1753790444056,1.3423831,118690.0,118680.0,0.74164]
[1753790444255,1.3423831,118690.0,118680.0,0.74264]
[1753790445466,1.3433831,118690.0,118680.0,0.74264]
[1753790446661,1.3433831,118690.0,118680.0,0.0684]
[1753790446861,1.73698808,118690.0,118680.0,0.74264]
[1753790447061,1.73698808,118690.0,118680.0,0.74078925]
[1753790447257,1.73698808,118690.0,118680.0,0.73978925]
[1753790447457,2.23698808,118690.0,118680.0,0.73978925]
[1753790448165,2.0118951,118690.0,118680.0,0.73978925]
[1753790448771,1.78680212,118690.0,118680.0,0.73978925]
[1753790449071,2.0118951,118690.0,118680.0,0.73978925]
[1753790450069,2.0118951,118690.0,118680.0,0.73852999]
[1753790451771,2.0118951,118690.0,118680.0,0.06428999]
[1753790452664,2.23698808,118690.0,118680.0,0.06428999]
[1753790452863,0.3549499,118680.0,118670.0,0.71126]
[1753790453071,1.56978586,118680.0,118670.0,0.71126]
[1753790453772,2.06978586,118680.0,118670.0,0.71126]
[1753790454272,2.06978586,118680.0,118670.0,0.71222]
[1753790454273,2.13644822,118680.0,118670.0,0.71222]
[1753790454766,2.06978586,118680.0,118670.0,0.71222]
[1753790454972,1.84469288,118680.0,118670.0,0.93383669]
[1753790455472,1.84469288,118680.0,118670.0,0.97470669]
[1753790455772,1.34469288,118680.0,118670.0,0.97470669]
[1753790455971,1.34569288,118680.0,118670.0,0.97470669]
[1753790456166,1.34569288,118680.0,118670.0,1.00487654]
[1753790456370,1.34569288,118680.0,118670.0,0.97470669]
[1753790457270,1.34569288,118680.0,118670.0,0.93283669]
[1753790457470,1.36026806,118680.0,118670.0,0.93283669]
[1753790457966,1.13417508,118680.0,118670.0,0.93283669]
[1753790458167,1.35926806,118680.0,118670.0,0.93327214]
[1753790458668,1.34469288,118680.0,118670.0,0.93327214]
[1753790458869,1.35926727,118680.0,118670.0,0.93327214]
[1753790460469,1.34469288,118680.0,118670.0,0.96344199]
[1753790460773,1.35926696,118680.0,118670.0,0.97414214]
[1753790461075,1.34469288,118680.0,118670.0,1.00431199]
[1753790461577,1.35926717,118680.0,118670.0,0.97414214]
[1753790461969,1.35926717,118680.0,118670.0,0.93327214]
[1753790463072,1.58436015,118680.0,118670.0,0.76472814]
[1753790463278,1.58436015,118680.0,118670.0,0.93327204]
[1753790463477,1.58436015,118680.0,118670.0,0.73333814]
[1753790463973,1.58436015,118680.0,118670.0,0.05913814]
[1753790464179,1.58436015,118680.0,118670.0,0.73321814]
[1753790464973,2.08436015,118680.0,118670.0,0.73321814]
[1753790465173,2.08436015,118680.0,118670.0,0.73221814]
[1753790465380,2.08536015,118680.0,118670.0,0.73221814]
[1753790467676,2.08536015,118680.0,118670.0,0.05813814]
[1753790467876,2.08536015,118680.0,118670.0,0.73213814]
[1753790468570,2.1511319,118680.0,118670.0,0.73213814]
[1753790471982,2.1511319,118680.0,118670.0,0.05813814]
[1753790474582,1.92603892,118680.0,118670.0,0.93199204]
[1753790474780,1.92603892,118680.0,118670.0,0.93198374]
[1753790475882,1.92603892,118680.0,118670.0,0.76344814]
[1753790476686,1.92603892,118680.0,118670.0,0.93198314]
[1753790477488,1.92603892,118680.0,118670.0,0.76344814]
[1753790477787,1.92603892,118680.0,118670.0,0.93198304]
[1753790478585,2.1511319,118680.0,118670.0,0.93198304]
[1753790479686,2.1511319,118680.0,118670.0,0.76344814]
[1753790480782,1.39004419,118680.0,118670.0,1.00302279]
[1753790480987,1.61513717,118680.0,118670.0,1.00302279]
[1753790481182,0.87637429,118680.0,118670.0,1.00302279]
[1753790481387,0.37637429,118680.0,118670.0,1.22811577]
[1753790482090,0.37637429,118680.0,118670.0,1.00302279]
[1753790482883,0.37637429,118680.0,118670.0,1.24321715]
[1753790483084,0.3618,118680.0,118670.0,1.19794592]
[1753790483283,0.3608,118680.0,118670.0,1.19994592]
[1753790484183,1.0632117,118700.0,118690.0,0.2008464]
[1753790484383,0.37538648,118700.0,118690.0,1.19247179]
[1753790484579,0.3608,118700.0,118690.0,1.19247179]
[1753790484783,1.03684078,118710.0,118700.0,0.2008322]
[1753790484989,1.29171079,118710.0,118700.0,0.26338489]
[1753790485188,0.57017,118710.0,118700.0,0.29360461]
[1753790485388,0.84143,118710.0,118700.0,0.29360461]
[1753790485588,0.84143,118710.0,118700.0,0.3389342]
[1753790485891,0.84143,118710.0,118700.0,0.29360461]
[1753790486082,0.84143,118710.0,118700.0,0.3389342]
[1753790486283,0.3608,118710.0,118700.0,0.33885842]
[1753790486487,0.3608,118710.0,118700.0,0.5639514]
[1753790486683,0.80348098,118710.0,118700.0,0.30871448]
[1753790486889,1.33500098,118710.0,118700.0,0.30871448]
[1753790487389,1.33500098,118710.0,118700.0,0.29352684]
[1753790487584,1.23500098,118710.0,118700.0,0.29352684]
[1753790487991,1.06652298,118710.0,118700.0,0.30248068]
[1753790488390,0.84143,118710.0,118700.0,0.30248068]
[1753790488690,1.009908,118710.0,118700.0,0.30248068]
[1753790488887,1.009908,118710.0,118700.0,0.30348068]
[1753790489087,1.23500098,118710.0,118700.0,0.30348068]
[1753790489790,1.23500098,118710.0,118700.0,0.29452684]
[1753790490090,1.009908,118710.0,118700.0,0.29452684]
[1753790490295,1.23500098,118710.0,118700.0,0.29452684]
[1753790492390,1.23500098,118710.0,118700.0,0.26438489]
[1753790494092,1.23500098,118710.0,118700.0,0.33286921]
[1753790494993,1.06652298,118710.0,118700.0,0.33286921]
[1753790495995,1.23500108,118710.0,118700.0,0.33286921]
[1753790496389,1.06652298,118710.0,118700.0,0.33286921]
[1753790498699,0.48063,118710.0,118700.0,0.55796219]
[1753790501101,0.48063,118710.0,118700.0,0.33286921]
[1753790501699,0.70572298,118710.0,118700.0,0.33286921]
[1753790502406,0.70572298,118710.0,118700.0,0.29199921]
[1753790502608,0.70572298,118710.0,118700.0,0.32214116]
[1753790505102,0.48063,118710.0,118700.0,0.32214116]
[1753790505298,0.70572298,118710.0,118700.0,0.32214116]
[1753790505499,0.70572298,118710.0,118700.0,0.36747075]
[1753790505805,0.87420098,118710.0,118700.0,0.36747075]
[1753790506107,1.06652298,118710.0,118700.0,0.99542116]
[1753790506809,0.84143,118710.0,118700.0,0.99542116]
[1753790507307,1.06652298,118710.0,118700.0,1.04075075]
[1753790507818,1.06652298,118710.0,118700.0,0.99542116]
[1753790508509,1.06652298,118710.0,118700.0,1.04075075]
[1753790509212,1.06652298,118710.0,118700.0,1.08157675]
[1753790509414,1.06652298,118710.0,118700.0,1.0514788]
[1753790512414,1.06652298,118710.0,118700.0,1.00614921]
[1753790512915,1.06652298,118710.0,118700.0,1.06648638]
[1753790514012,0.84143,118710.0,118700.0,1.06648638]
[1753790514212,1.06652298,118710.0,118700.0,1.06648638]
[1753790515004,0.84143,118710.0,118700.0,1.06648638]
[1753790516021,0.48063,118710.0,118700.0,1.06648638]
[1753790516715,0.3608,118720.0,118700.0,1.12308716]
[1753790516921,0.04866,118710.0,118700.0,1.25070146]
[1753790517115,0.04866,118710.0,118700.0,1.41919366]
[1753790517512,0.47696,118710.0,118700.0,1.41919366]
[1753790519820,0.47696,118710.0,118700.0,1.41819366]
[1753790520122,0.47696,118710.0,118700.0,1.41919366]
[1753790520618,0.09397,118710.0,118700.0,1.35885649]
[1753790521015,0.29724,118710.0,118700.0,1.35885649]
[1753790521214,0.47696,118710.0,118700.0,1.35885649]
[1753790521414,0.47696,118710.0,118700.0,1.37567144]
[1753790521610,0.47696,118710.0,118700.0,1.43610261]
[1753790521815,0.47696,118710.0,118700.0,1.43613381]
[1753790522617,0.47696,118710.0,118700.0,1.37570264]
[1753790523816,0.47696,118710.0,118700.0,1.15060966]
[1753790524321,0.47696,118710.0,118700.0,1.21102874]
[1753790524520,0.47696,118710.0,118700.0,1.43612172]
[1753790524817,0.47696,118710.0,118700.0,1.37570264]
[1753790525021,0.47696,118710.0,118700.0,1.37622308]
[1753790525324,0.47696,118710.0,118700.0,1.43663956]
[1753790525621,0.47696,118710.0,118700.0,1.37622308]
[1753790527926,0.09397,118710.0,118700.0,1.37622308]
[1753790528627,0.09397,118710.0,118700.0,1.43662916]
[1753790528827,0.09397,118710.0,118700.0,2.60174916]
[1753790529125,0.23102,118710.0,118700.0,2.60174916]
[1753790529423,0.47696,118710.0,118700.0,2.60174916]
[1753790531227,0.47696,118710.0,118700.0,2.96254916]
[1753790531620,0.47696,118710.0,118700.0,3.02993916]
[1753790534526,0.47696,118710.0,118700.0,3.00596308]
[1753790537126,0.47696,118710.0,118700.0,3.06634203]
[1753790539430,0.47696,118710.0,118700.0,2.84124905]
[1753790539728,0.47696,118710.0,118700.0,3.06634203]
[1753790541633,0.09397,118710.0,118700.0,3.06634203]
[1753790541929,0.04866,118710.0,118700.0,3.06634203]
[1753790542534,0.04866,118710.0,118700.0,3.00596308]
[1753790542731,0.04866,118710.0,118700.0,3.08166591]
[1753790543735,0.42939,118720.0,118710.0,0.3369489]
[1753790543934,0.47763,118720.0,118710.0,0.64414382]
[1753790544634,0.47763,118720.0,118710.0,0.41905084]
[1753790545023,0.47763,118720.0,118710.0,0.64414382]
[1753790545228,0.47863,118720.0,118710.0,0.35866279]
[1753790545428,0.47863,118720.0,118710.0,0.58375577]
[1753790546128,0.47863,118720.0,118710.0,0.35866279]
[1753790546335,0.47863,118720.0,118710.0,0.41905158]
[1753790546529,0.47863,118720.0,118710.0,0.35866279]
[1753790547134,0.70372298,118720.0,118710.0,0.35866279]
[1753790547535,0.70372298,118720.0,118710.0,0.31654429]
[1753790548336,0.70372298,118720.0,118710.0,0.39224712]
[1753790548537,0.47863,118720.0,118710.0,0.39224712]
[1753790548738,0.47863,118720.0,118710.0,0.31654429]
[1753790549044,0.47863,118720.0,118710.0,0.54163727]
[1753790550036,0.47863,118720.0,118710.0,0.31654429]
[1753790551440,0.47863,118720.0,118710.0,0.54163727]
[1753790552537,0.47863,118720.0,118710.0,0.31654429]
[1753790552736,0.47863,118720.0,118710.0,0.54163727]
[1753790555744,0.47863,118720.0,118710.0,0.60902727]
[1753790556047,0.47863,118720.0,118710.0,0.64545727]
[1753790556647,0.47863,118720.0,118710.0,0.42036429]
[1753790557148,0.47863,118720.0,118710.0,0.64545727]
[1753790557345,0.47863,118720.0,118710.0,0.42036429]
[1753790559451,0.47863,118720.0,118710.0,0.48077247]
[1753790560047,0.47863,118720.0,118710.0,0.42036429]
[1753790560354,0.47863,118720.0,118710.0,0.64545727]
[1753790560551,0.57863,118720.0,118710.0,0.42036429]
[1753790561053,0.47863,118720.0,118710.0,0.42036429]
[1753790562458,0.47863,118720.0,118710.0,1.81045727]
[1753790563062,0.47863,118720.0,118710.0,1.58536429]
[1753790563259,0.47863,118720.0,118710.0,1.81045727]
[1753790563557,0.47863,118720.0,118710.0,1.58536429]
[1753790563763,0.47863,118720.0,118710.0,1.81045727]
[1753790564565,0.47863,118720.0,118710.0,1.58536429]
[1753790564765,0.64732275,118720.0,118710.0,1.81447079]
[1753790565369,0.47863,118720.0,118710.0,1.81447079]
[1753790565570,0.64732275,118720.0,118710.0,1.81447079]
[1753790565771,0.47863,118720.0,118710.0,1.81447079]
[1753790566069,0.64732275,118720.0,118710.0,1.81447079]
[1753790567266,0.47863,118720.0,118710.0,1.81447079]
[1753790567465,0.64732275,118720.0,118710.0,1.81447079]
[1753790567669,0.47863,118720.0,118710.0,1.64577804]
[1753790567865,0.47863,118720.0,118710.0,1.81447079]
[1753790568464,0.9260155,118720.0,118710.0,1.81447079]
[1753790568665,0.9360155,118720.0,118710.0,1.81447079]
[1753790568869,0.59863,118720.0,118710.0,1.81447079]
[1753790569065,0.8160155,118720.0,118710.0,1.81447079]
[1753790569267,0.8160155,118720.0,118710.0,1.64577804]
[1753790569461,0.59863,118720.0,118710.0,1.81447079]
[1753790569667,0.8160155,118720.0,118710.0,1.81447079]
[1753790569968,0.9360155,118720.0,118710.0,1.81447079]
[1753790570167,0.8160155,118720.0,118710.0,1.81447079]
[1753790570363,0.47863,118720.0,118710.0,1.81447079]
[1753790570569,0.9260155,118720.0,118710.0,1.64577804]
[1753790570770,0.9460155,118720.0,118710.0,1.81447079]
[1753790571168,0.8160155,118720.0,118710.0,1.81447079]
[1753790571672,0.47863,118720.0,118710.0,1.83178763]
[1753790571972,0.9260155,118720.0,118710.0,1.83178763]
[1753790572473,0.8160155,118720.0,118710.0,1.83178763]
[1753790573970,0.64732275,118720.0,118710.0,1.83178763]
[1753790574270,0.47863,118720.0,118710.0,1.83178763]
[1753790574460,0.64732275,118720.0,118710.0,1.83178763]
[1753790574669,0.64732275,118720.0,118710.0,1.77137388]
[1753790574871,0.47863,118720.0,118710.0,1.77137388]
[1753790575073,0.64732275,118720.0,118710.0,1.77137388]
[1753790575263,0.64732275,118720.0,118710.0,1.77087835]
[1753790577370,0.64732275,118720.0,118710.0,1.7708384]
[1753790578775,0.47863,118720.0,118710.0,1.7708384]
[1753790579074,0.47863,118720.0,118710.0,1.84654123]
[1753790579275,0.64732275,118720.0,118710.0,1.84654123]
[1753790579774,0.64732275,118720.0,118710.0,1.7708384]
[1753790581077,0.64732275,118720.0,118710.0,1.77083928]
[1753790581975,0.64732275,118720.0,118710.0,1.77083915]
[1753790582475,0.47863,118720.0,118710.0,1.77083915]
[1753790582679,0.64732275,118720.0,118710.0,1.83131311]
[1753790585075,1.63397305,118720.0,118710.0,1.29053389]
[1753790585383,1.4652803,118720.0,118710.0,1.97133389]
[1753790585674,1.4652803,118720.0,118710.0,2.03180785]
[1753790585880,1.63397305,118720.0,118710.0,1.97133389]
[1753790586375,1.4652803,118720.0,118710.0,0.80665389]
[1753790586579,1.4652803,118720.0,118710.0,0.12553389]
[1753790586779,1.4652803,118720.0,118710.0,0.80661389]
[1753790587078,1.4652803,118720.0,118710.0,0.12553389]
[1753790587279,1.4652803,118720.0,118710.0,0.80657389]
[1753790587579,1.4652803,118720.0,118710.0,0.97505289]
[1753790588379,1.4652803,118720.0,118710.0,0.29401289]
[1753790588575,1.4652803,118720.0,118710.0,0.97481289]
[1753790588780,1.352904,118720.0,118710.0,0.97481289]
[1753790588981,1.352904,118720.0,118710.0,0.80633389]
[1753790589279,1.352904,118720.0,118710.0,0.97481289]
[1753790589779,1.5779132,118720.0,118710.0,0.97481289]
[1753790590480,1.59250689,118720.0,118710.0,1.05037484]
[1753790591078,1.36749769,118720.0,118710.0,1.05037484]
[1753790592281,1.36749769,118720.0,118710.0,1.00503767]
[1753790592583,1.352904,118720.0,118710.0,1.02015006]
[1753790593519,1.352904,118720.0,118710.0,0.33935006]
[1753790593692,1.352904,118720.0,118710.0,1.01967006]
[1753790595383,1.352904,118720.0,118710.0,1.04986829]
[1753790595581,1.352904,118720.0,118710.0,1.04978829]
[1753790596283,1.352904,118720.0,118710.0,0.36954829]
[1753790596484,1.352904,118720.0,118710.0,1.04942829]
[1753790597978,1.1278948,118720.0,118710.0,1.04942829]
[1753790598182,0.25367745,118720.0,118710.0,0.97389289]
[1753790598387,0.2391,118720.0,118710.0,1.01923006]
[1753790598592,0.2391,118720.0,118710.0,1.24423926]
[1753790598791,0.47152,118720.0,118710.0,1.01923006]
[1753790598977,0.47152,118720.0,118710.0,1.26211926]
[1753790600091,0.09762,118720.0,118710.0,1.21678209]
[1753790600589,0.04924,118720.0,118710.0,1.21678209]
[1753790600785,0.04924,118720.0,118710.0,0.99177289]
[1753790600993,0.47008,118720.0,118710.0,0.99177289]
[1753790601582,0.6950892,118720.0,118710.0,0.99177289]
[1753790601782,0.47008,118720.0,118710.0,0.99177289]
[1753790601985,0.6950892,118720.0,118710.0,0.99177289]
[1753790603189,0.47008,118720.0,118710.0,0.99177289]
[1753790603389,0.6950892,118720.0,118710.0,0.99177289]
[1753790605589,0.8150892,118720.0,118710.0,0.99177289]
[1753790606396,0.47008,118720.0,118710.0,0.99177289]
[1753790606592,0.8050892,118720.0,118710.0,0.99177289]
[1753790608996,0.9735541,118720.0,118710.0,0.99177289]
[1753790609489,0.9735541,118720.0,118710.0,0.92438289]
[1753790609889,1.3343541,118720.0,118710.0,0.92438289]
[1753790612095,1.3343541,118720.0,118710.0,0.88794098]
[1753790613090,0.8050892,118720.0,118710.0,0.88794098]
[1753790613292,0.001,118720.0,118710.0,0.94841494]
[1753790613496,0.04882,118720.0,118710.0,1.53422414]
[1753790613692,0.04882,118720.0,118710.0,1.17342414]
[1753790614293,0.09582,118720.0,118710.0,0.94841494]
[1753790614497,0.46966,118720.0,118710.0,0.94841494]
[1753790615407,0.001,118720.0,118710.0,1.17342414]
[1753790615697,0.001,118720.0,118710.0,1.53415613]
[1753790616695,0.001,118720.0,118710.0,2.11723138]
[1753790616902,0.04782,118740.0,118730.0,0.2105635]
[1753790617100,0.04782,118760.0,118730.0,1.76959808]
[1753790617298,0.04782,118750.0,118740.0,0.64171917]
[1753790617598,0.04782,118750.0,118740.0,0.31965285]
[1753790617794,0.46866,118750.0,118740.0,0.31965285]
[1753790618497,0.6936692,118750.0,118740.0,0.31965285]
[1753790618698,0.46866,118750.0,118740.0,0.31965285]
[1753790618894,0.6936692,118750.0,118740.0,0.31965285]
[1753790619095,0.46866,118750.0,118740.0,0.31965285]
[1753790619296,0.6936692,118750.0,118740.0,0.32065285]
[1753790619696,0.46866,118750.0,118740.0,0.32065285]
[1753790619900,0.6936692,118750.0,118740.0,0.32065285]
[1753790620704,0.6936692,118750.0,118740.0,0.32165285]
[1753790621203,0.46866,118750.0,118740.0,0.32165285]
[1753790621405,0.6936692,118750.0,118740.0,0.32165285]
[1753790623000,0.46866,118750.0,118740.0,0.32165285]
[1753790623202,0.6936692,118750.0,118740.0,0.27635678]
[1753790623398,0.6936692,118750.0,118740.0,0.33675154]
[1753790623803,0.46866,118750.0,118740.0,0.33675154]
[1753790624709,0.6936692,118750.0,118740.0,0.33675154]
[1753790626101,0.7936692,118750.0,118740.0,0.33675154]
[1753790626302,0.46866,118750.0,118740.0,0.33675154]
[1753790626502,0.6936692,118750.0,118740.0,0.33675154]
[1753790626899,0.46866,118750.0,118740.0,0.33675154]
[1753790627098,0.6936692,118750.0,118740.0,0.33675154]